[Event "*** Titled Tuesday Blitz"]
[Site "Chess.com"]
[Date "2020.05.12"]
[Round "6"]
[White "Richarzard69"]
[Black "Grandmaster2B"]
[Result "1-0"]
[WhiteElo "2289"]
[BlackElo "2475"]
[TimeControl "180+1"]
[EndTime "11:06:11 PDT"]
[Termination "Richarzard69 won by resignation"]

1. Nf3 {[%clk 0:03:00.9]} 1... c5 {[%clk 0:02:57.8]} 2. c4 {[%clk 0:03:00.6]}
2... Nc6 {[%clk 0:02:56.4]} 3. Nc3 {[%clk 0:03:00.6]} 3... Nf6 {[%clk
0:02:56.4]} 4. g3 {[%clk 0:02:59.7]} 4... g6 {[%clk 0:02:56.4]} 5. Bg2 {[%clk
0:02:59.4]} 5... Bg7 {[%clk 0:02:56.7]} 6. d4 {[%clk 0:02:59.6]} 6... cxd4
{[%clk 0:02:56.7]} 7. Nxd4 {[%clk 0:03:00.5]} 7... O-O {[%clk 0:02:57]} 8. O-O
{[%clk 0:03:00.7]} 8... a6 {[%clk 0:02:46.9]} 9. b3 {[%clk 0:02:39.7]} 9... Ne4
{[%clk 0:02:11.5]} 10. Nxe4 {[%clk 0:02:26.1]} 10... Nxd4 {[%clk 0:02:06]} 11.
Rb1 {[%clk 0:01:43.6]} 11... f5 {[%clk 0:02:03.1]} 12. Ng5 {[%clk 0:01:36.1]}
12... h6 {[%clk 0:01:58.7]} 13. Nf3 {[%clk 0:01:35.7]} 13... Nxf3+ {[%clk
0:01:25.9]} 14. Bxf3 {[%clk 0:01:36.6]} 14... Qc7 {[%clk 0:01:25.8]} 15. Bb2
{[%clk 0:01:29.6]} 15... Rb8 {[%clk 0:01:20.9]} 16. Bxg7 {[%clk 0:01:27.7]}
16... Kxg7 {[%clk 0:01:21.8]} 17. Qd2 {[%clk 0:01:16.1]} 17... b5 {[%clk
0:01:19]} 18. Rbc1 {[%clk 0:01:14.5]} 18... Qe5 {[%clk 0:01:04]} 19. c5 {[%clk
0:01:10.4]} 19... Rd8 {[%clk 0:00:31.5]} 20. Rfd1 {[%clk 0:01:06.6]} 20... Bb7
{[%clk 0:00:25.7]} 21. Bxb7 {[%clk 0:00:58.6]} 21... Rxb7 {[%clk 0:00:26.6]} 22.
c6 {[%clk 0:00:55.2]} 22... Rc7 {[%clk 0:00:26.7]} 23. cxd7 {[%clk 0:00:49.2]}
23... Rcxd7 {[%clk 0:00:21.4]} 24. Qxd7 {[%clk 0:00:49.2]} 24... Rxd7 {[%clk
0:00:22.3]} 25. Rxd7 {[%clk 0:00:49.2]} 25... Qxe2 {[%clk 0:00:22.4]} 26. Rcc7
{[%clk 0:00:41.7]} 26... Qxa2 {[%clk 0:00:15.9]} 27. Rxe7+ {[%clk 0:00:38.8]}
27... Kf6 {[%clk 0:00:16.6]} 28. f4 {[%clk 0:00:30.5]} 28... Qb1+ {[%clk
0:00:11.7]} 29. Kg2 {[%clk 0:00:27.2]} 29... Qb2+ {[%clk 0:00:11.3]} 30. Kh3
{[%clk 0:00:24.4]} 30... Qxb3 {[%clk 0:00:11.4]} 31. Red7 {[%clk 0:00:18.3]}
31... Ke6 {[%clk 0:00:03.2]} 32. Re7+ {[%clk 0:00:15.4]} 32... Kd6 {[%clk
0:00:03.8]} 33. Red7+ {[%clk 0:00:12.9]} 33... Ke6 {[%clk 0:00:03.4]} 34. Re7+
{[%clk 0:00:12.9]} 34... Kf6 {[%clk 0:00:04.2]} 35. Red7 {[%clk 0:00:11.8]}
35... Qb4 {[%clk 0:00:03.5]} 36. Rc6+ {[%clk 0:00:10.4]} 1-0

[Event "*** Titled Tuesday Blitz"]
[Site "Chess.com"]
[Date "2020.05.12"]
[Round "6"]
[White "floplover"]
[Black "Michaelson_11"]
[Result "1-0"]
[WhiteElo "2237"]
[BlackElo "2001"]
[TimeControl "180+1"]
[EndTime "11:06:12 PDT"]
[Termination "floplover won by checkmate"]

1. d4 {[%clk 0:03:00.9]} 1... Nf6 {[%clk 0:02:59.6]} 2. c4 {[%clk 0:03:01]} 2...
e6 {[%clk 0:02:59.6]} 3. Nc3 {[%clk 0:03:01.1]} 3... Bb4 {[%clk 0:03:00]} 4. Qc2
{[%clk 0:03:01.1]} 4... d5 {[%clk 0:02:59.9]} 5. cxd5 {[%clk 0:02:59.4]} 5...
exd5 {[%clk 0:03:00.8]} 6. Bg5 {[%clk 0:02:59]} 6... h6 {[%clk 0:03:00.2]} 7.
Bxf6 {[%clk 0:02:59.3]} 7... Qxf6 {[%clk 0:02:58.5]} 8. a3 {[%clk 0:03:00.2]}
8... Bxc3+ {[%clk 0:02:39.6]} 9. Qxc3 {[%clk 0:03:01.1]} 9... c6 {[%clk
0:02:39.9]} 10. e3 {[%clk 0:03:01.3]} 10... O-O {[%clk 0:02:39.8]} 11. Ne2
{[%clk 0:03:00.9]} 11... Bf5 {[%clk 0:02:35.1]} 12. Nf4 {[%clk 0:03:01]} 12...
Nd7 {[%clk 0:02:32.6]} 13. Bd3 {[%clk 0:03:00.2]} 13... Rfe8 {[%clk 0:02:30.4]}
14. O-O {[%clk 0:02:59.1]} 14... Rad8 {[%clk 0:02:21.7]} 15. b4 {[%clk
0:02:57.9]} 15... Nf8 {[%clk 0:02:13.7]} 16. a4 {[%clk 0:02:54.4]} 16... g5
{[%clk 0:02:11.4]} 17. Nh5 {[%clk 0:02:31.1]} 17... Qg6 {[%clk 0:02:07.8]} 18.
Bxf5 {[%clk 0:02:28.4]} 18... Qxf5 {[%clk 0:02:08.7]} 19. Ng3 {[%clk 0:02:26]}
19... Qg6 {[%clk 0:01:50.8]} 20. b5 {[%clk 0:02:25.8]} 20... Rc8 {[%clk
0:01:48.2]} 21. bxc6 {[%clk 0:02:17]} 21... bxc6 {[%clk 0:01:29.9]} 22. Rab1
{[%clk 0:02:08.5]} 22... Ne6 {[%clk 0:01:16.6]} 23. Qa5 {[%clk 0:01:56.2]} 23...
Rb8 {[%clk 0:00:59.8]} 24. Rxb8 {[%clk 0:01:51.4]} 24... Rxb8 {[%clk 0:01:00.7]}
25. Qxa7 {[%clk 0:01:52]} 25... Rb1 {[%clk 0:00:55.8]} 26. Qa8+ {[%clk
0:01:49.2]} 26... Kg7 {[%clk 0:00:52.8]} 27. Nh5+ {[%clk 0:01:33.7]} 27... Kh7
{[%clk 0:00:44.5]} 28. Nf6+ {[%clk 0:01:33.9]} 28... Qxf6 {[%clk 0:00:32.9]} 29.
Rxb1 {[%clk 0:01:32.3]} 29... Qf5 {[%clk 0:00:33]} 30. Rf1 {[%clk 0:01:29.2]}
30... Qc2 {[%clk 0:00:30.5]} 31. a5 {[%clk 0:01:26.9]} 31... Qa2 {[%clk
0:00:29]} 32. a6 {[%clk 0:01:26.3]} 32... Nc7 {[%clk 0:00:28.6]} 33. Qb7 {[%clk
0:01:12.4]} 33... Nxa6 {[%clk 0:00:20.1]} 34. Qxf7+ {[%clk 0:01:11.7]} 34... Kh8
{[%clk 0:00:18.9]} 35. Qf6+ {[%clk 0:01:09.3]} 35... Kh7 {[%clk 0:00:18.8]} 36.
f4 {[%clk 0:01:01.5]} 36... gxf4 {[%clk 0:00:14.5]} 37. Qxf4 {[%clk 0:00:57.8]}
37... Nb4 {[%clk 0:00:10]} 38. Qf7+ {[%clk 0:00:56.9]} 38... Kh8 {[%clk
0:00:09.9]} 39. Qf8+ {[%clk 0:00:51.9]} 39... Kh7 {[%clk 0:00:09.6]} 40. Rf7+
{[%clk 0:00:48.6]} 40... Kg6 {[%clk 0:00:09.6]} 41. Qg7+ {[%clk 0:00:48.7]}
41... Kh5 {[%clk 0:00:08.2]} 42. Rf5+ {[%clk 0:00:49.6]} 42... Kh4 {[%clk
0:00:08.3]} 43. Qg3# {[%clk 0:00:49.6]} 1-0

[Event "*** Titled Tuesday Blitz"]
[Site "Chess.com"]
[Date "2020.05.12"]
[Round "6"]
[White "AleksanderHnydiuk"]
[Black "Olga_Girya"]
[Result "1-0"]
[WhiteElo "2584"]
[BlackElo "2432"]
[TimeControl "180+1"]
[EndTime "11:06:13 PDT"]
[Termination "AleksanderHnydiuk won on time"]

1. Nf3 {[%clk 0:03:00.9]} 1... d5 {[%clk 0:02:59.6]} 2. d4 {[%clk 0:03:00.5]}
2... Nf6 {[%clk 0:02:58.9]} 3. c4 {[%clk 0:03:00.6]} 3... e6 {[%clk 0:02:58.9]}
4. g3 {[%clk 0:03:00.7]} 4... Bb4+ {[%clk 0:02:57.7]} 5. Bd2 {[%clk 0:03:00.4]}
5... Be7 {[%clk 0:02:57.9]} 6. Bg2 {[%clk 0:03:00.5]} 6... O-O {[%clk
0:02:58.2]} 7. O-O {[%clk 0:03:00.7]} 7... Nbd7 {[%clk 0:02:58.7]} 8. Qc2 {[%clk
0:03:00.8]} 8... c6 {[%clk 0:02:59]} 9. Bf4 {[%clk 0:02:59.6]} 9... b6 {[%clk
0:02:59]} 10. Rd1 {[%clk 0:02:59.5]} 10... Ba6 {[%clk 0:02:58.6]} 11. cxd5
{[%clk 0:02:55.7]} 11... cxd5 {[%clk 0:02:56.1]} 12. Ne5 {[%clk 0:02:55.7]}
12... Rc8 {[%clk 0:02:55.9]} 13. Nc6 {[%clk 0:02:55.7]} 13... Nh5 {[%clk
0:02:45.1]} 14. Bc1 {[%clk 0:02:34.4]} 14... Nb8 {[%clk 0:02:44.7]} 15. Nxe7+
{[%clk 0:02:33.5]} 15... Qxe7 {[%clk 0:02:45.1]} 16. Nc3 {[%clk 0:02:34.1]}
16... Nc6 {[%clk 0:02:42.1]} 17. Qd2 {[%clk 0:01:59.9]} 17... f5 {[%clk
0:02:34.1]} 18. b3 {[%clk 0:01:58.3]} 18... Rfd8 {[%clk 0:02:28.1]} 19. a4
{[%clk 0:01:53.2]} 19... Nf6 {[%clk 0:02:27.2]} 20. Ba3 {[%clk 0:01:49.3]} 20...
Qf7 {[%clk 0:02:23.6]} 21. Rac1 {[%clk 0:01:41]} 21... h6 {[%clk 0:02:13.2]} 22.
f3 {[%clk 0:01:31.8]} 22... g5 {[%clk 0:01:54.4]} 23. Nb5 {[%clk 0:01:10.7]}
23... Bxb5 {[%clk 0:01:02.5]} 24. axb5 {[%clk 0:01:10]} 24... Na5 {[%clk
0:01:03.1]} 25. Qd3 {[%clk 0:00:57.7]} 25... Qd7 {[%clk 0:01:03.4]} 26. Bb2
{[%clk 0:00:30.7]} 26... Kf7 {[%clk 0:00:50.4]} 27. e4 {[%clk 0:00:17.2]} 27...
g4 {[%clk 0:00:20.5]} 28. exf5 {[%clk 0:00:15.3]} 28... exf5 {[%clk 0:00:18]}
29. fxg4 {[%clk 0:00:14.5]} 29... fxg4 {[%clk 0:00:13.9]} 30. Rf1 {[%clk
0:00:13.9]} 30... Kg7 {[%clk 0:00:12.8]} 31. Rxc8 {[%clk 0:00:12.8]} 31... Rxc8
{[%clk 0:00:12]} 32. Bc1 {[%clk 0:00:13.3]} 32... Re8 {[%clk 0:00:04]} 33. Bxh6+
{[%clk 0:00:10.7]} 1-0

[Event "*** Titled Tuesday Blitz"]
[Site "Chess.com"]
[Date "2020.05.12"]
[Round "6"]
[White "Sergey85Rodchenkov"]
[Black "Alexander_Donchenko"]
[Result "1-0"]
[WhiteElo "2512"]
[BlackElo "2714"]
[TimeControl "180+1"]
[EndTime "11:06:15 PDT"]
[Termination "Sergey85Rodchenkov won by resignation"]

1. e4 {[%clk 0:03:00.7]} 1... g6 {[%clk 0:02:58.3]} 2. d4 {[%clk 0:03:00.3]}
2... Bg7 {[%clk 0:02:58.8]} 3. Nc3 {[%clk 0:03:00.8]} 3... d6 {[%clk 0:02:59.2]}
4. Be3 {[%clk 0:02:59.9]} 4... a6 {[%clk 0:02:58.2]} 5. h4 {[%clk 0:02:57.6]}
5... h5 {[%clk 0:02:56.3]} 6. Qd2 {[%clk 0:02:55.9]} 6... b5 {[%clk 0:02:55.3]}
7. f3 {[%clk 0:02:56.1]} 7... Nd7 {[%clk 0:02:54.6]} 8. Nh3 {[%clk 0:02:49.9]}
8... c5 {[%clk 0:02:53.4]} 9. Ng5 {[%clk 0:02:49.4]} 9... cxd4 {[%clk
0:02:52.3]} 10. Bxd4 {[%clk 0:02:49.1]} 10... Ngf6 {[%clk 0:02:52.9]} 11. a4
{[%clk 0:02:37]} 11... b4 {[%clk 0:02:42.2]} 12. Nd5 {[%clk 0:02:10.3]} 12... a5
{[%clk 0:02:42.4]} 13. Bb5 {[%clk 0:02:09.3]} 13... O-O {[%clk 0:02:41.6]} 14.
g4 {[%clk 0:02:06]} 14... Nxd5 {[%clk 0:02:23.9]} 15. Bxg7 {[%clk 0:01:58.9]}
15... Kxg7 {[%clk 0:02:22.8]} 16. exd5 {[%clk 0:01:59.2]} 16... Nf6 {[%clk
0:02:20.3]} 17. Bc6 {[%clk 0:01:41.9]} 17... Rb8 {[%clk 0:02:12.2]} 18. gxh5
{[%clk 0:01:37.8]} 18... Nxh5 {[%clk 0:02:09.5]} 19. O-O-O {[%clk 0:01:35.2]}
19... Bf5 {[%clk 0:02:02.2]} 20. Rhg1 {[%clk 0:01:31.3]} 20... Qb6 {[%clk
0:01:59.2]} 21. Rge1 {[%clk 0:01:12.5]} 21... e5 {[%clk 0:01:50]} 22. dxe6
{[%clk 0:00:43.5]} 22... Qxc6 {[%clk 0:01:48.9]} 23. exf7 {[%clk 0:00:38.9]}
23... Rbc8 {[%clk 0:01:28.9]} 24. Re2 {[%clk 0:00:38.7]} 24... Nf6 {[%clk
0:01:02]} 25. h5 {[%clk 0:00:36]} 25... Bxc2 {[%clk 0:00:50]} 26. Qxc2 {[%clk
0:00:33.4]} 26... Qb7 {[%clk 0:00:21.5]} 27. Rxd6 {[%clk 0:00:19.5]} 27... Rxc2+
{[%clk 0:00:20.2]} 28. Rxc2 {[%clk 0:00:20.3]} 28... Rc8 {[%clk 0:00:11.9]} 29.
h6+ {[%clk 0:00:11.9]} 29... Kxh6 {[%clk 0:00:09]} 30. Rxf6 {[%clk 0:00:12]}
30... Rxc2+ {[%clk 0:00:08]} 31. Kxc2 {[%clk 0:00:12.9]} 31... Qc8+ {[%clk
0:00:07.1]} 32. Kb3 {[%clk 0:00:10.4]} 32... Qd8 {[%clk 0:00:02.2]} 33. f8=Q+
{[%clk 0:00:08.4]} 1-0

[Event "*** Titled Tuesday Blitz"]
[Site "Chess.com"]
[Date "2020.05.12"]
[Round "6"]
[White "Anuar_Is"]
[Black "Andreikka"]
[Result "1-0"]
[WhiteElo "2806"]
[BlackElo "2936"]
[TimeControl "180+1"]
[EndTime "11:06:16 PDT"]
[Termination "Anuar_Is won by resignation"]

1. e4 {[%clk 0:02:56.9]} 1... e5 {[%clk 0:02:59.6]} 2. Nf3 {[%clk 0:02:56.7]}
2... Nc6 {[%clk 0:02:59.9]} 3. Bb5 {[%clk 0:02:56.5]} 3... a6 {[%clk 0:02:59.4]}
4. Ba4 {[%clk 0:02:53.4]} 4... Nf6 {[%clk 0:02:59.3]} 5. Nc3 {[%clk 0:02:48.2]}
5... Bc5 {[%clk 0:02:58.2]} 6. Nxe5 {[%clk 0:02:43.2]} 6... Nxe5 {[%clk
0:02:52.4]} 7. d4 {[%clk 0:02:42.8]} 7... b5 {[%clk 0:02:24.4]} 8. Bb3 {[%clk
0:02:39]} 8... Bxd4 {[%clk 0:02:23.6]} 9. Qxd4 {[%clk 0:02:33.5]} 9... d6 {[%clk
0:02:24]} 10. Qe3 {[%clk 0:02:30.2]} 10... c5 {[%clk 0:02:20]} 11. a4 {[%clk
0:02:26.2]} 11... c4 {[%clk 0:02:18.3]} 12. Ba2 {[%clk 0:02:26.4]} 12... Bb7
{[%clk 0:01:40.8]} 13. O-O {[%clk 0:02:23.4]} 13... O-O {[%clk 0:01:40.4]} 14.
Qd4 {[%clk 0:02:10.2]} 14... Nc6 {[%clk 0:01:28.7]} 15. Qd1 {[%clk 0:02:05.5]}
15... Nb4 {[%clk 0:01:20.1]} 16. Bb1 {[%clk 0:02:02.6]} 16... Re8 {[%clk
0:00:52.3]} 17. Bg5 {[%clk 0:01:53.8]} 17... h6 {[%clk 0:00:46.4]} 18. Bh4
{[%clk 0:01:53.6]} 18... g5 {[%clk 0:00:45]} 19. Bg3 {[%clk 0:01:53.5]} 19...
Nxe4 {[%clk 0:00:45.5]} 20. Nxe4 {[%clk 0:01:35]} 20... Bxe4 {[%clk 0:00:45.9]}
21. axb5 {[%clk 0:01:34.9]} 21... axb5 {[%clk 0:00:45.8]} 22. Rxa8 {[%clk
0:01:34.6]} 22... Bxa8 {[%clk 0:00:40.2]} 23. c3 {[%clk 0:01:33.4]} 23... Nd5
{[%clk 0:00:37.7]} 24. Qh5 {[%clk 0:01:16]} 24... Qf6 {[%clk 0:00:36.2]} 25. h4
{[%clk 0:01:08.6]} 25... Kg7 {[%clk 0:00:16.4]} 26. hxg5 {[%clk 0:00:52.3]}
26... Qxg5 {[%clk 0:00:16.4]} 27. Qh2 {[%clk 0:00:45.1]} 27... Nf6 {[%clk
0:00:13.6]} 28. Bxd6 {[%clk 0:00:41]} 28... Re2 {[%clk 0:00:09.5]} 29. Bf4
{[%clk 0:00:38.4]} 29... Qh5 {[%clk 0:00:09.4]} 30. Qg3+ {[%clk 0:00:38]} 30...
Qg4 {[%clk 0:00:09.9]} 31. Qh2 {[%clk 0:00:31.8]} 31... h5 {[%clk 0:00:10.1]}
32. f3 {[%clk 0:00:27.2]} 32... Qe6 {[%clk 0:00:06.1]} 33. Qg3+ {[%clk
0:00:27.4]} 33... Kf8 {[%clk 0:00:06.2]} 34. Bh6+ {[%clk 0:00:26.6]} 34... Ke7
{[%clk 0:00:06.7]} 35. Qc7+ {[%clk 0:00:26.4]} 35... Qd7 {[%clk 0:00:06.9]} 36.
Qc5+ {[%clk 0:00:26.7]} 36... Qd6 {[%clk 0:00:05]} 37. Bf8+ {[%clk 0:00:26.3]}
37... Kxf8 {[%clk 0:00:02.2]} 38. Qxd6+ {[%clk 0:00:27.2]} 38... Kg7 {[%clk
0:00:02.8]} 39. Qg3+ {[%clk 0:00:27]} 1-0

[Event "*** Titled Tuesday Blitz"]
[Site "Chess.com"]
[Date "2020.05.12"]
[Round "6"]
[White "wonderfultime"]
[Black "nabukatnezarr"]
[Result "1-0"]
[WhiteElo "2933"]
[BlackElo "2517"]
[TimeControl "180+1"]
[EndTime "11:06:17 PDT"]
[Termination "wonderfultime won by checkmate"]

1. d4 {[%clk 0:02:56]} 1... e6 {[%clk 0:03:00.9]} 2. c4 {[%clk 0:02:54.7]} 2...
Nf6 {[%clk 0:03:01.4]} 3. Nf3 {[%clk 0:02:54.5]} 3... c5 {[%clk 0:02:58.9]} 4.
d5 {[%clk 0:02:54.2]} 4... exd5 {[%clk 0:02:59.8]} 5. cxd5 {[%clk 0:02:55.1]}
5... d6 {[%clk 0:02:59.9]} 6. Nc3 {[%clk 0:02:55.7]} 6... g6 {[%clk 0:03:00.1]}
7. Bf4 {[%clk 0:02:56.3]} 7... a6 {[%clk 0:02:43.7]} 8. a4 {[%clk 0:02:56.2]}
8... Bg7 {[%clk 0:02:43.8]} 9. e3 {[%clk 0:02:55.1]} 9... O-O {[%clk 0:02:44.1]}
10. h3 {[%clk 0:02:55.7]} 10... Ne8 {[%clk 0:02:44.3]} 11. Be2 {[%clk
0:02:56.1]} 11... Nd7 {[%clk 0:02:44.5]} 12. O-O {[%clk 0:02:56.6]} 12... Ne5
{[%clk 0:02:44.8]} 13. Nxe5 {[%clk 0:02:47.2]} 13... Bxe5 {[%clk 0:02:45.7]} 14.
Bxe5 {[%clk 0:02:46.4]} 14... dxe5 {[%clk 0:02:45.4]} 15. a5 {[%clk 0:02:47.3]}
15... f5 {[%clk 0:02:41.1]} 16. Na4 {[%clk 0:02:44.3]} 16... Qxa5 {[%clk
0:02:34.6]} 17. Qc2 {[%clk 0:02:22.3]} 17... Nd6 {[%clk 0:02:25.3]} 18. Nxc5
{[%clk 0:02:19.8]} 18... Qc7 {[%clk 0:02:16.1]} 19. Rac1 {[%clk 0:02:18.7]}
19... Bd7 {[%clk 0:02:11.9]} 20. Qb3 {[%clk 0:02:14.8]} 20... Rfc8 {[%clk
0:01:59.1]} 21. Nd3 {[%clk 0:02:07.2]} 21... Qd8 {[%clk 0:01:56.2]} 22. Nxe5
{[%clk 0:02:05.3]} 22... Be8 {[%clk 0:01:44.3]} 23. Nd3 {[%clk 0:01:47.8]} 23...
Kg7 {[%clk 0:01:35.8]} 24. Nc5 {[%clk 0:01:40.9]} 24... Bf7 {[%clk 0:01:34.7]}
25. Rfd1 {[%clk 0:01:35.4]} 25... Qe7 {[%clk 0:01:28.6]} 26. Qb6 {[%clk
0:01:27]} 26... Kh6 {[%clk 0:01:11.7]} 27. Bf3 {[%clk 0:01:22.5]} 27... Rc7
{[%clk 0:01:07.3]} 28. Ne6 {[%clk 0:01:16.1]} 28... Rd7 {[%clk 0:00:55.2]} 29.
Rc3 {[%clk 0:00:53.5]} 29... Nb5 {[%clk 0:00:53.4]} 30. Rcc1 {[%clk 0:00:46.5]}
30... Re8 {[%clk 0:00:51.3]} 31. Nc5 {[%clk 0:00:43.3]} 31... Rc7 {[%clk
0:00:44.8]} 32. d6 {[%clk 0:00:42.9]} 32... Nxd6 {[%clk 0:00:41.2]} 33. Rxd6
{[%clk 0:00:38.5]} 33... Rec8 {[%clk 0:00:36.8]} 34. b4 {[%clk 0:00:38.3]} 34...
a5 {[%clk 0:00:37.2]} 35. bxa5 {[%clk 0:00:38]} 35... Qe5 {[%clk 0:00:28.9]} 36.
Bxb7 {[%clk 0:00:20.3]} 36... Rxc5 {[%clk 0:00:25.5]} 37. Rxc5 {[%clk
0:00:19.9]} 37... Rxc5 {[%clk 0:00:26.4]} 38. Rd1 {[%clk 0:00:20.1]} 38... Rxa5
{[%clk 0:00:25.5]} 39. Bf3 {[%clk 0:00:19.7]} 39... Ra1 {[%clk 0:00:24.3]} 40.
Qd8 {[%clk 0:00:16.7]} 40... Rxd1+ {[%clk 0:00:22.8]} 41. Qxd1 {[%clk
0:00:17.6]} 41... Be6 {[%clk 0:00:21.4]} 42. Qd8 {[%clk 0:00:15.4]} 42... Qg7
{[%clk 0:00:20.3]} 43. Qh4# {[%clk 0:00:15.2]} 1-0

[Event "*** Titled Tuesday Blitz"]
[Site "Chess.com"]
[Date "2020.05.12"]
[Round "6"]
[White "diablanni"]
[Black "RubensCezila"]
[Result "1-0"]
[WhiteElo "2315"]
[BlackElo "2450"]
[TimeControl "180+1"]
[EndTime "11:06:19 PDT"]
[Termination "diablanni won by resignation"]

1. e4 {[%clk 0:03:00.6]} 1... c6 {[%clk 0:02:54.4]} 2. d4 {[%clk 0:02:59]} 2...
d5 {[%clk 0:02:54.2]} 3. Nc3 {[%clk 0:02:58.6]} 3... dxe4 {[%clk 0:02:54]} 4.
Nxe4 {[%clk 0:02:58.6]} 4... Nf6 {[%clk 0:02:54.6]} 5. Nxf6+ {[%clk 0:02:56.9]}
5... exf6 {[%clk 0:02:55.5]} 6. c3 {[%clk 0:02:54.6]} 6... Bd6 {[%clk
0:02:54.8]} 7. Bd3 {[%clk 0:02:52.4]} 7... O-O {[%clk 0:02:54.8]} 8. Qc2 {[%clk
0:02:49]} 8... Re8+ {[%clk 0:02:54.4]} 9. Ne2 {[%clk 0:02:41.5]} 9... h5 {[%clk
0:02:53.6]} 10. O-O {[%clk 0:02:15.6]} 10... h4 {[%clk 0:02:53]} 11. h3 {[%clk
0:02:12.2]} 11... Nd7 {[%clk 0:02:49.7]} 12. Bf4 {[%clk 0:02:06.1]} 12... Nf8
{[%clk 0:02:33.4]} 13. Bxd6 {[%clk 0:02:04]} 13... Qxd6 {[%clk 0:02:31.6]} 14.
Rae1 {[%clk 0:02:03]} 14... b5 {[%clk 0:02:24.4]} 15. Qd2 {[%clk 0:01:59.5]}
15... Be6 {[%clk 0:01:59.7]} 16. a3 {[%clk 0:01:58.8]} 16... a5 {[%clk
0:01:59.2]} 17. Qf4 {[%clk 0:01:58.1]} 17... Qxf4 {[%clk 0:01:55]} 18. Nxf4
{[%clk 0:01:57.5]} 18... Bb3 {[%clk 0:01:53.6]} 19. f3 {[%clk 0:01:47.2]} 19...
b4 {[%clk 0:01:44.9]} 20. Rxe8 {[%clk 0:01:43.1]} 20... Rxe8 {[%clk 0:01:44.2]}
21. axb4 {[%clk 0:01:41.1]} 21... axb4 {[%clk 0:01:45.1]} 22. Ra1 {[%clk
0:01:37.2]} 22... bxc3 {[%clk 0:01:37.4]} 23. bxc3 {[%clk 0:01:36.6]} 23... g5
{[%clk 0:01:26.2]} 24. Ne2 {[%clk 0:01:36.1]} 24... Re3 {[%clk 0:01:22]} 25. Nc1
{[%clk 0:01:36.3]} 25... Re1+ {[%clk 0:00:53.3]} 26. Kf2 {[%clk 0:01:36.6]}
26... Rd1 {[%clk 0:00:53.7]} 27. Be2 {[%clk 0:01:31.2]} 27... Rxc1 {[%clk
0:00:46.6]} 28. Rxc1 {[%clk 0:01:30.5]} 28... Ne6 {[%clk 0:00:47.2]} 29. Ke3
{[%clk 0:01:26]} 29... Nf4 {[%clk 0:00:44.7]} 30. Bf1 {[%clk 0:01:25.7]} 30...
Kf8 {[%clk 0:00:44.8]} 31. c4 {[%clk 0:01:25.2]} 31... Ke7 {[%clk 0:00:43.1]}
32. Rc3 {[%clk 0:01:24.3]} 32... Ba4 {[%clk 0:00:40.5]} 33. Kd2 {[%clk
0:01:21.5]} 33... c5 {[%clk 0:00:35.6]} 34. dxc5 {[%clk 0:01:21.1]} 34... Ne6
{[%clk 0:00:34.2]} 35. Re3 {[%clk 0:01:17.8]} 35... Kd7 {[%clk 0:00:33.5]} 36.
Kc3 {[%clk 0:01:14.3]} 36... Nxc5 {[%clk 0:00:30]} 37. Kb4 {[%clk 0:01:13.5]}
37... Kd6 {[%clk 0:00:28.3]} 38. Re1 {[%clk 0:01:03.8]} 38... Bc2 {[%clk
0:00:22.1]} 39. Rc1 {[%clk 0:00:59.1]} 39... Bf5 {[%clk 0:00:18.5]} 40. Rd1+
{[%clk 0:00:58.4]} 40... Kc6 {[%clk 0:00:19]} 41. Rd5 {[%clk 0:00:57.4]} 41...
Na6+ {[%clk 0:00:18.9]} 42. Ka5 {[%clk 0:00:57.2]} 42... Bc8 {[%clk 0:00:19.1]}
43. Rd8 {[%clk 0:00:52.4]} 43... Bb7 {[%clk 0:00:18.9]} 44. Rf8 {[%clk
0:00:50.6]} 44... Nc5 {[%clk 0:00:13.6]} 45. Rxf7 {[%clk 0:00:49.5]} 45... Nd7
{[%clk 0:00:13.7]} 46. Kb4 {[%clk 0:00:46.2]} 46... Kd6 {[%clk 0:00:13]} 47. c5+
{[%clk 0:00:45]} 1-0